fUST/lending_fUST_20240518
["ID","MTS","AMOUNT","RATE_DAILY","PERIOD"]
[327327216,1715988639504,-500.0,0.00016438,2]
[327327217,1715988639514,-500.0,0.00016438,2]
[327327218,1715988639524,-500.0,0.00016438,2]
[327327219,1715988639534,-500.0,0.00016438,2]
[327327220,1715988639544,-500.0,0.00016438,2]
[327327221,1715988639554,-500.0,0.00016438,2]
[327327222,1715988639564,-500.0,0.00016438,2]
[327327223,1715988639579,-500.0,0.00016438,2]
[327327224,1715988639588,-500.0,0.00016438,2]
[327327225,1715988639599,-500.0,0.00016438,2]
[327327226,1715988639608,-500.0,0.00016438,2]
[327327227,1715988639618,-500.0,0.00016438,2]
[327327228,1715988639627,-500.0,0.00016438,2]
[327327229,1715988639637,-500.0,0.00016438,2]
[327327230,1715988639647,-649.95,0.00016438,2]
[327327231,1715988639658,-500.0,0.00016438,2]
[327327232,1715988639669,-500.0,0.00016438,2]
[327327233,1715988639679,-500.0,0.00016438,2]
[327327234,1715988639689,-500.0,0.00016438,2]
[327327235,1715988639699,-500.0,0.00016438,2]
[327327236,1715988639708,-500.0,0.00016438,2]
[327327237,1715988639718,-500.0,0.00016438,2]
[327327238,1715988639728,-500.0,0.00016438,2]
[327327239,1715988639737,-500.0,0.00016438,2]
[327327240,1715988639747,-500.0,0.00016438,2]
[327327241,1715988639756,-500.0,0.00016438,2]
[327327242,1715988639767,-500.0,0.00016438,2]
[327327244,1715988639777,-500.0,0.00016438,2]
[327327246,1715988639787,-500.0,0.00016438,2]
[327327248,1715988639798,-500.0,0.00016438,2]
[327327250,1715988639808,-500.0,0.00016438,2]
[327327252,1715988639818,-500.0,0.00016438,2]
[327327253,1715988639829,-500.0,0.00016438,2]
[327327255,1715988639840,-500.0,0.00016438,2]
[327327257,1715988639851,-522.94149242,0.00016438,2]
[327327259,1715988639862,-446.01180885,0.00016438,2]
[327327261,1715988639872,-500.0,0.00016438,2]
[327327263,1715988639883,-500.0,0.00016438,2]
[327327265,1715988639893,-500.0,0.00016438,2]
[327327266,1715988639903,-500.0,0.00016438,2]
[327327268,1715988639914,-500.0,0.00016438,2]
[327327270,1715988639925,-500.0,0.00016438,2]
[327327272,1715988639935,-514.1380679,0.00016438,2]
[327327274,1715988639946,-500.0,0.00016438,2]
[327327275,1715988639956,-564.9621803,0.00016438,2]
[327327277,1715988639968,-500.0,0.00016438,2]
[327327279,1715988639978,-511.10521844,0.00016438,2]
[327327281,1715988639989,-500.0,0.00016438,2]
[327327283,1715988639999,-500.0,0.00016438,2]
[327327285,1715988640009,-500.0,0.00016438,2]
[327327286,1715988640020,-500.0,0.00016438,2]
[327327288,1715988640031,-504.29461321,0.00016438,2]
[327327290,1715988640041,-500.0,0.00016438,2]
[327327292,1715988640052,-500.0,0.00016438,2]
[327327294,1715988640062,-500.0,0.00016438,2]
[327327296,1715988640072,-500.0,0.00016438,2]
[327327298,1715988640082,-500.0,0.00016438,2]
[327327299,1715988640092,-500.0,0.00016438,2]
[327327300,1715988640102,-500.0,0.00016438,2]
[327327301,1715988640113,-500.0,0.00016438,2]
[327327302,1715988640124,-1103.94,0.00016438,2]
[327327303,1715988640134,-509.11158163,0.00016438,2]
[327327304,1715988640145,-231.277296,0.00016438,2]
[327327305,1715988640156,-283.748331,0.00016438,2]
[327327306,1715988640166,-500.0,0.00016438,2]
[327327307,1715988640177,-500.0,0.00016438,2]
[327327308,1715988640187,-500.0,0.00016438,2]
[327327309,1715988640197,-231.277296,0.00016438,2]
[327327310,1715988640208,-502.51126909,0.00016438,2]
[327327311,1715988640219,-151.0,0.00016438,2]
[327327312,1715988640230,-500.0,0.00016438,2]
[327327313,1715988640240,-500.0,0.00016438,2]
[327327314,1715988640251,-500.0,0.00016438,2]
[327327315,1715988640263,-500.0,0.00016438,2]
[327327316,1715988640274,-504.6275065,0.00016438,2]
[327327317,1715988640285,-500.0,0.00016438,2]
[327327319,1715988640295,-500.0,0.00016438,4]
[327327320,1715988640306,-500.0,0.00016438,2]
[327327321,1715988640317,-2568.28,0.00016438,2]
[327327323,1715988640328,-500.0,0.00016438,2]
[327327325,1715988640338,-243.142303,0.00016438,2]
[327327327,1715988640349,-500.0,0.00016438,2]
[327327329,1715988640359,-428.28,0.00016438,2]
[327327331,1715988640370,-243.142303,0.00016438,2]
[327327333,1715988640381,-500.0,0.00016438,2]
[327327335,1715988640391,-3710.85,0.00016438,2]
[327327337,1715988640401,-500.0,0.00016438,2]
[327327352,1715988640540,-500.0,0.00016438,2]
[327327354,1715988640551,-500.0,0.00016438,2]
[327327356,1715988640561,-151.0,0.00016438,2]
[327327357,1715988640575,-500.0,0.00016438,2]
[327327359,1715988640585,-447.75220669,0.00016438,2]
[327327361,1715988640596,-709.64,0.00016438,2]
[327327363,1715988640606,-500.0,0.00016438,2]
[327327366,1715988640618,-257.5670223,0.00016438,2]
[327327368,1715988640628,-151.0,0.00016438,2]
[327327370,1715988640639,-500.0,0.00016438,2]
[327327372,1715988640651,-500.47313397,0.00016438,2]
[327327374,1715988640661,-500.0,0.00016438,2]
[327327376,1715988640673,-609.67,0.00016438,2]
[327327378,1715988640684,-500.0,0.00016438,2]
[327327380,1715988640695,-500.0,0.00016438,2]
[327327382,1715988640706,-5742.29,0.00016438,2]
[327327384,1715988640716,-500.0,0.00016438,2]
[327327386,1715988640726,-6153.07,0.00016438,2]
[327327388,1715988640736,-4706.14,0.00016438,2]
[327327390,1715988640746,-500.0,0.00016438,2]
[327327392,1715988640757,-500.0,0.00016438,2]
[327327394,1715988640767,-500.0,0.00016438,2]
[327327396,1715988640777,-516.9,0.00016438,2]
[327327398,1715988640788,-500.0,0.00016438,2]
[327327400,1715988640798,-500.0,0.00016438,2]
[327327402,1715988640808,-500.0,0.00016438,2]
[327327404,1715988640818,-500.0,0.00016438,2]
[327327406,1715988640828,-151.0,0.00016438,2]
[327327408,1715988640837,-500.0,0.00016438,2]
[327327410,1715988640846,-2695.42,0.00016438,2]
[327327412,1715988640856,-151.0,0.00016438,2]
[327327414,1715988640866,-500.0,0.00016438,2]
[327327416,1715988640876,-500.0,0.00016438,2]
[327327418,1715988640886,-500.0,0.00016438,2]
[327327420,1715988640896,-500.0,0.00016438,2]
[327327422,1715988640905,-500.0,0.00016438,2]
[327327424,1715988640915,-500.0,0.00016438,2]
[327327426,1715988640924,-506.42610505,0.00016438,2]
[327327428,1715988640933,-151.0,0.00016438,2]
[327327430,1715988640943,-500.0,0.00016438,2]
[327327432,1715988640952,-500.0,0.00016438,2]
[327327434,1715988640961,-500.0,0.00016438,2]
[327327436,1715988640970,-500.47322055,0.00016438,2]
[327327438,1715988640979,-151.0,0.00016438,2]
[327327440,1715988640988,-3440.53,0.00016438,2]
[327327442,1715988640997,-1947.640822,0.00016438,2]
[327327444,1715988641006,-500.0,0.00016438,2]
[327327445,1715988641015,-503.02130566,0.00016438,2]
[327327448,1715988641024,-21462.07,0.00016438,2]
[327327449,1715988641033,-1947.640822,0.00016438,2]
[327327451,1715988641042,-500.0,0.00016438,2]
[327327453,1715988641051,-383.51822389,0.00016438,2]
[327327455,1715988641060,-500.0,0.00016438,2]
[327327457,1715988641070,-500.0,0.00016438,2]
[327327459,1715988641079,-500.0,0.00016438,2]
[327327461,1715988641088,-500.0,0.00016438,2]
[327327463,1715988641098,-151.0,0.00016438,2]
[327327465,1715988641107,-500.0,0.00016438,2]
[327327467,1715988641117,-500.0,0.00016438,2]
[327327469,1715988641127,-642.63361152,0.00016438,2]
[327327471,1715988641136,-500.0,0.00016438,2]
[327327473,1715988641145,-500.0,0.00016438,2]
[327327475,1715988641155,-500.0,0.00016438,2]
[327327477,1715988641164,-1238.78,0.00016438,2]
[327327479,1715988641175,-500.0,0.00016438,2]
[327327481,1715988641184,-500.0,0.00016438,2]
[327327483,1715988641194,-1546.857652,0.00016438,2]
[327327485,1715988641203,-500.0,0.00016438,2]
[327327487,1715988641213,-500.0,0.00016438,2]
[327327490,1715988641222,-1546.857652,0.00016438,2]
[327327491,1715988641232,-500.0,0.00016438,2]
[327327493,1715988641241,-151.0,0.00016438,2]
[327327495,1715988641251,-151.0,0.00016438,2]
[327327498,1715988641262,-500.0,0.00016438,2]
[327327499,1715988641271,-500.0,0.00016438,2]
[327327501,1715988641281,-500.0,0.00016438,2]
[327327503,1715988641290,-530.42,0.00016438,2]
[327327505,1715988641299,-500.0,0.00016438,2]
[327327507,1715988641309,-151.0,0.00016438,2]
[327327509,1715988641317,-500.0,0.00016438,2]
[327327511,1715988641326,-500.0,0.00016438,2]
[327327513,1715988641336,-500.0,0.00016438,2]
[327327515,1715988641345,-500.0,0.00016438,2]
[327327517,1715988641355,-151.0,0.00016438,2]
[327327519,1715988641364,-600.94,0.00016438,2]
[327327521,1715988641373,-584.77878106,0.00016438,2]
[327327523,1715988641382,-500.0,0.00016438,2]
[327327525,1715988641392,-500.0,0.00016438,2]
[327327527,1715988641401,-500.0,0.00016438,2]
[327327529,1715988641410,-806.46,0.00016438,2]
[327327531,1715988641420,-500.0,0.00016438,2]
[327327533,1715988641429,-500.0,0.00016438,2]
[327327535,1715988641438,-323.446998,0.00016438,2]
[327327537,1715988641447,-151.0,0.00016438,2]
[327327539,1715988641456,-151.0,0.00016438,2]
[327327541,1715988641465,-531.82153831,0.00016438,2]
[327327543,1715988641474,-323.446998,0.00016438,2]
[327327545,1715988641482,-500.0,0.00016438,2]
[327327547,1715988641491,-177.16,0.00016438,2]
[327327549,1715988641501,-500.0,0.00016438,2]
[327327551,1715988641510,-500.0,0.00016438,2]
[327327553,1715988641519,-500.0,0.00016438,2]
[327327555,1715988641529,-500.0,0.00016438,2]
[327327557,1715988641539,-169.4097097,0.00016439,2]
[327327559,1715988641548,-408.672069,0.00016439,2]
[327327561,1715988641558,-204.3360345,0.00016439,2]
[327327563,1715988641570,-204.3360345,0.00016439,2]
[327327565,1715988641581,-203.4309895,0.00016439,2]
[327327567,1715988641591,-288.35096926,0.00016456,2]
[327327569,1715988641600,-274.09997115,0.000165,2]
[327327571,1715988641611,-12703.0,0.000165,2]
[327327573,1715988641620,-166.867428,0.000165,2]
[327327575,1715988641629,-166.867428,0.000165,2]
[327327577,1715988641638,-213.552262,0.000165,2]
[327327579,1715988641649,-4205.11921,0.000165,2]
[327327580,1715988641660,-151.0,0.000165,2]
[327327582,1715988641670,-4205.11921,0.000165,2]
[327327584,1715988641680,-1887.510066,0.000165,2]
[327327586,1715988641690,-1887.510066,0.000165,2]
[327327588,1715988641699,-537.8,0.00016611,3]
[327327590,1715988641708,-537.8,0.00016611,2]
[327327592,1715988641717,-150.0,0.00016611,3]
[327327594,1715988641727,-150.0,0.00016611,2]
[327327596,1715988641737,-2045.09005458,0.00016622,2]
[327327599,1715988641748,-224.45180395,0.00016622,2]
[327327600,1715988641757,-7233.47195198,0.00016712,3]
[327327602,1715988641767,-500.0,0.00016712,2]
[327327604,1715988641776,-500.0,0.00016712,2]
[327327606,1715988641785,-500.0,0.00016712,2]
[327327608,1715988641796,-500.0,0.00016712,2]
[327327610,1715988641805,-172.428668,0.00016712,2]
[327327612,1715988641815,-172.428668,0.00016712,2]
[327327614,1715988641825,-151.0,0.00016712,2]
[327327617,1715988641834,-151.0,0.00016712,2]
[327327619,1715988641844,-500.0,0.00016712,2]
[327327620,1715988641854,-203.42,0.00016712,2]
[327327623,1715988641864,-928.00602,0.00016712,2]
[327327625,1715988641874,-928.00602,0.00016712,2]
[327327627,1715988641884,-500.0,0.00016712,2]
[327327629,1715988641894,-151.0,0.00016712,2]
[327327630,1715988641903,-850.729666,0.00016712,2]
[327327632,1715988641912,-850.729666,0.00016712,2]
[327327635,1715988641922,-151.0,0.00016712,2]
[327327637,1715988641932,-151.0,0.00016712,2]
[327327638,1715988641941,-154.507713,0.00016712,2]
[327327641,1715988641951,-154.507713,0.00016712,2]
[327327642,1715988641960,-262.79,0.00016712,2]
[327327644,1715988641969,-151.0,0.00016712,2]
[327327646,1715988641978,-174.640218,0.00016712,2]
[327327648,1715988641987,-174.640218,0.00016712,2]
[327327650,1715988641997,-500.0,0.00016712,2]
[327327652,1715988642006,-151.0,0.00016712,2]
[327327654,1715988642015,-151.0,0.00016712,2]
[327327656,1715988642024,-500.0,0.00016712,2]
[327327659,1715988642034,-1103.94,0.00016712,2]
[327327661,1715988642043,-608.819002,0.00016712,2]
[327327662,1715988642053,-608.819002,0.00016712,2]
[327327664,1715988642063,-231.277296,0.00016712,2]
[327327666,1715988642072,-385.99,0.00016712,2]
[327327668,1715988642081,-500.0,0.00016712,2]
[327327670,1715988642091,-231.277296,0.00016712,2]
[327327672,1715988642100,-151.0,0.00016712,2]
[327327674,1715988642109,-151.0,0.00016712,2]
[327327676,1715988642118,-500.0,0.00016712,2]
[327327678,1715988642128,-344.91685889,0.00016712,2]
[327327680,1715988642137,-500.0,0.00016712,4]
[327327682,1715988642147,-2512.23935421,0.00016712,2]
[327327712,1715988642414,-56.04064579,0.00016712,2]
[327327714,1715988642423,-500.0,0.00016712,2]
[327327716,1715988642432,-243.142303,0.00016712,2]
[327327718,1715988642442,-243.142303,0.00016712,2]
[327327720,1715988642451,-3710.85,0.00016712,2]
[327327721,1715988642460,-151.0,0.00016712,2]
[327327723,1715988642470,-709.64,0.00016712,2]
[327327725,1715988642480,-151.0,0.00016712,2]
[327327727,1715988642489,-609.67,0.00016712,2]
[327327730,1715988642499,-5742.29,0.00016712,2]
[327327732,1715988642509,-6153.07,0.00016712,2]
[327327733,1715988642519,-4706.14,0.00016712,2]
[327327736,1715988642528,-500.0,0.00016712,2]
[327327737,1715988642537,-500.0,0.00016712,2]
[327327739,1715988642547,-151.0,0.00016712,2]
[327327741,1715988642556,-500.0,0.00016712,2]
[327327743,1715988642566,-2355.6782669,0.00016712,2]
[327327762,1715988642742,-402.65461014,0.00016438,2]
[327327764,1715988642754,-141.67495086,0.00016438,2]
[327327766,1715988642765,-339.7417331,0.00016712,2]
[327327768,1715988642775,-151.0,0.00016712,2]
[327327770,1715988642784,-500.0,0.00016712,2]
[327327772,1715988642794,-500.0,0.00016712,2]
[327327774,1715988642804,-500.0,0.00016712,2]
[327327776,1715988642814,-500.0,0.00016712,2]
[327327778,1715988642824,-151.0,0.00016712,2]
[327327780,1715988642833,-500.0,0.00016712,2]
[327327782,1715988642843,-166.867428,0.00016712,2]
[327327784,1715988642852,-182.969371,0.00016712,2]
[327327786,1715988642861,-1306.68312223,0.00016712,2]
[327327867,1715988643767,-2133.84687777,0.00016712,2]
[327327869,1715988643776,-1947.640822,0.00016712,2]
[327327871,1715988643787,-166.867428,0.00016712,2]
[327327873,1715988643796,-9120.44487223,0.00016712,2]
[327330677,1715989749171,-10507.25045734,0.00013572,2]
[327330678,1715989749190,-869.52182603,0.00013573,2]
[327330679,1715989749214,-287.8014407,0.00013573,2]
[327330680,1715989749232,-186.45900731,0.00013574,2]
[327330681,1715989749252,-3160.37443932,0.00013575,2]
[327330682,1715989749281,1136.09949395,0.0001,2]
[327330686,1715989758136,-21739.62556068,0.00013575,2]
[327330687,1715989758156,-392.171143,0.00013699,2]
[327330688,1715989758189,-3000.0,0.00013971,2]
[327330689,1715989758217,-6128.0648799,0.00013972,2]
[327330690,1715989758239,-3390.5117,0.00014,2]
[327330691,1715989765253,1136.09949395,0.00011227,2]
[327330695,1715989783253,1136.09949395,0.00011227,2]
[327330696,1715989799247,1018.0158829,0.00011227,2]
[327330700,1715989811972,346.04184562,9.999e-05,2]
[327330701,1715989811992,146.7509777,9.999e-05,2]
[327330712,1715989832748,-357.37946933,0.00014872,2]
[327330713,1715989832758,-1161.10226004,0.00014968,2]
[327330714,1715989832806,-2229.40943996,0.00014968,2]
[327330715,1715989832824,-9164.91089402,0.00014969,2]
[327330716,1715989832836,-1593.66828313,0.0001497,2]
[327330718,1715989832846,-653.08641699,0.0001497,2]
[327330720,1715989832856,-1094.84700582,0.0001497,2]
[327330722,1715989832866,-154.70605849,0.0001497,2]
[327330724,1715989832875,-154.70605849,0.0001497,2]
[327330726,1715989832885,-286.3624082,0.0001497,2]
[327330728,1715989832896,-154.9224646,0.0001497,2]
[327330730,1715989832906,-212.08344327,0.0001497,2]
[327330732,1715989832916,-380.34473833,0.0001497,2]
[327330734,1715989832926,-7344.3700949,0.00014971,2]
[327330735,1715989832937,-157.22542668,0.00014972,2]
[327330736,1715989832947,-840.4039915,0.00014972,2]
[327330737,1715989832957,-1625.19373538,0.00014972,2]
[327330738,1715989832967,-690.11886562,0.00014972,2]
[327330739,1715989832978,-12929.58202663,0.00014972,2]
[327330740,1715989832992,-4564.85244279,0.00014972,2]
[327330776,1715989838376,-775.25132775,0.00014971,2]
[327330778,1715989838388,-674.65439883,0.00014971,2]
[327330780,1715989838399,-8709.65221591,0.00014972,2]
[327330782,1715989838408,-2677.97514069,0.00014972,2]
[327330784,1715989838418,-5537.60700728,0.00014972,2]
[327330785,1715989838428,-154.70605849,0.00014973,2]
[327330787,1715989838437,-9619.00393063,0.00014973,2]
[327330790,1715989838447,-1148.90229176,0.00015,2]
[327330792,1715989838458,-942.40757179,0.00015,2]
[327330794,1715989838467,-2107.25657902,0.00015,2]
[327330796,1715989838477,-80000.0,0.00015,2]
[327330798,1715989838487,-2400.26192892,0.00015,2]
[327330800,1715989838496,-357.37946931,0.00015239,2]
[327330802,1715989838506,-357.37946931,0.00015605,2]
[327330804,1715989838515,-4296.94494415,0.000159,2]
[327330806,1715989838524,-357.37946931,0.00015972,2]
[327330808,1715989838533,-1068.28467209,0.00015998,2]
[327330810,1715989838542,-297.25726222,0.00016,2]
[327330812,1715989838552,-224.45180395,0.00016,2]
[327330814,1715989838561,-2045.09005458,0.00016,2]
[327330816,1715989838571,-7966.29275223,0.00016,2]
[327330818,1715989838580,-5019.36336665,0.00016,2]
[327330820,1715989838590,-10482.46743188,0.00016338,3]
[327330822,1715989838599,-357.37946931,0.00016338,2]
[327330824,1715989838609,-69502.77849292,0.00016338,2]
[327330826,1715989838618,-2000.0,0.00016338,2]
[327330828,1715989838627,-333.40190303,0.00016435,2]
[327330830,1715989838636,-154.79876161,0.00016435,2]
[327330832,1715989838646,-2822.75609319,0.00016435,2]
[327330834,1715989838655,-1683.4698518,0.00016436,2]
[327330836,1715989838664,-1704.29237534,0.00016437,2]
[327330838,1715989838673,-503.51167733,0.00016438,2]
[327330840,1715989838683,-500.0,0.00016438,2]
[327330842,1715989838692,-500.0,0.00016438,2]
[327330844,1715989838701,-500.0,0.00016438,2]
[327330846,1715989838712,-500.0,0.00016438,2]
[327330848,1715989838722,-500.0,0.00016438,2]
[327330850,1715989838731,-500.0,0.00016438,2]
[327330852,1715989838740,-500.0,0.00016438,2]
[327330854,1715989838749,-500.0,0.00016438,2]
[327330856,1715989838761,-500.0,0.00016438,2]
[327330859,1715989838771,-500.0,0.00016438,2]
[327330861,1715989838780,-503.17578765,0.00016438,2]
[327330880,1715989838952,-502.1537635,0.00016438,2]
[327330883,1715989838973,-500.0,0.00016438,2]
[327330885,1715989838983,-500.0,0.00016438,2]
[327330887,1715989838992,-500.0,0.00016438,2]
[327330889,1715989839002,-376.95872008,0.00016438,2]
[327330891,1715989839011,-500.0,0.00016438,2]
[327330893,1715989839021,-500.0,0.00016438,2]
[327330895,1715989839030,-500.0,0.00016438,2]
[327330897,1715989839040,-500.0,0.00016438,2]
[327330899,1715989839050,-500.0,0.00016438,2]
[327330902,1715989839060,-500.0,0.00016438,2]
[327330904,1715989839069,-500.0,0.00016438,2]
[327330906,1715989839079,-500.0,0.00016438,2]
[327330908,1715989839089,-500.0,0.00016438,2]
[327330910,1715989839098,-522.94149242,0.00016438,2]
[327330912,1715989839107,-446.01180885,0.00016438,2]
[327330913,1715989839116,-500.0,0.00016438,2]
[327330915,1715989839125,-543.09779564,0.00016438,2]
[327330917,1715989839135,-500.0,0.00016438,2]
[327330919,1715989839144,-500.0,0.00016438,2]
[327330921,1715989839154,-500.0,0.00016438,2]
[327330923,1715989839164,-500.0,0.00016438,2]
[327330925,1715989839174,-500.2004031,0.00016438,2]
[327330927,1715989839183,-500.0,0.00016438,2]
[327330930,1715989839193,-500.0,0.00016438,2]
[327330931,1715989839203,-500.0,0.00016438,2]
[327330934,1715989839216,-500.0,0.00016438,2]
[327330936,1715989839230,-500.0,0.00016438,2]
[327330937,1715989839239,-500.0,0.00016438,2]
[327330939,1715989839248,-500.0,0.00016438,2]
[327330941,1715989839258,-500.0,0.00016438,2]
[327330943,1715989839267,-500.0,0.00016438,2]
[327330945,1715989839277,-500.0,0.00016438,2]
[327330947,1715989839287,-500.0,0.00016438,2]
[327330949,1715989839297,-500.0,0.00016438,2]
[327330951,1715989839306,-500.0,0.00016438,2]
[327330953,1715989839316,-500.0,0.00016438,2]
[327330955,1715989839325,-500.0,0.00016438,2]
[327330957,1715989839334,-500.0,0.00016438,2]
[327330959,1715989839343,-500.0,0.00016438,2]
[327330961,1715989839353,-500.0,0.00016438,2]
[327330963,1715989839363,-500.0,0.00016438,2]
[327330965,1715989839372,-500.0,0.00016438,2]
[327330967,1715989839381,-500.0,0.00016438,2]
[327330969,1715989839392,-500.0,0.00016438,2]
[327330971,1715989839402,-500.0,0.00016438,2]
[327330973,1715989839412,-500.0,0.00016438,2]
[327330976,1715989839421,-500.0,0.00016438,2]
[327330978,1715989839430,-500.0,0.00016438,2]
[327330980,1715989839440,-500.0,0.00016438,2]
[327330981,1715989839449,-500.0,0.00016438,2]
[327330983,1715989839460,-500.0,0.00016438,2]
[327330985,1715989839469,-257.5670223,0.00016438,2]
[327330988,1715989839479,-500.0,0.00016438,2]
[327330990,1715989839489,-649.95,0.00016438,2]
[327330992,1715989839500,-500.0,0.00016438,2]
[327330994,1715989839510,-500.0,0.00016438,2]
[327330996,1715989839519,-500.0,0.00016438,2]
[327330998,1715989839529,-500.0,0.00016438,2]
[327331000,1715989839538,-500.0,0.00016438,4]
[327331002,1715989839548,-500.0,0.00016438,2]
[327331004,1715989839557,-500.0,0.00016438,2]
[327331006,1715989839567,-500.0,0.00016438,2]
[327331008,1715989839576,-500.0,0.00016438,2]
[327331010,1715989839586,-500.0,0.00016438,2]
[327331012,1715989839595,-500.0,0.00016438,2]
[327331014,1715989839604,-500.0,0.00016438,2]
[327331016,1715989839614,-500.0,0.00016438,2]
[327331018,1715989839623,-500.0,0.00016438,2]
[327331020,1715989839632,-500.0,0.00016438,2]
[327331021,1715989839641,-500.0,0.00016438,2]
[327331024,1715989839651,-500.0,0.00016438,2]
[327331025,1715989839660,-500.0,0.00016438,2]
[327331027,1715989839670,-500.0,0.00016438,2]
[327331029,1715989839679,-500.0,0.00016438,2]
[327331031,1715989839689,-500.0,0.00016438,2]
[327331033,1715989839699,-500.0,0.00016438,2]
[327331035,1715989839711,-515.39551987,0.00016438,2]
[327331037,1715989839720,-500.0,0.00016438,2]
[327331039,1715989839729,-506.42610505,0.00016438,2]
[327331042,1715989839738,-500.0,0.00016438,2]
[327331043,1715989839748,-503.02130566,0.00016438,2]
[327331046,1715989839758,-500.0,0.00016438,2]
[327331047,1715989839767,-514.1380679,0.00016438,2]
[327331049,1715989839776,-383.51822389,0.00016438,2]
[327331051,1715989839786,-564.9621803,0.00016438,2]
[327331053,1715989839795,-511.10521844,0.00016438,2]
[327331057,1715989839804,-500.0,0.00016438,2]
[327331060,1715989839815,-500.0,0.00016438,2]
[327331062,1715989839824,-500.0,0.00016438,2]
[327331064,1715989839834,-500.0,0.00016438,2]
[327331067,1715989839843,-500.0,0.00016438,2]
[327331070,1715989839852,-500.0,0.00016438,2]
[327331073,1715989839862,-531.82153831,0.00016438,2]
[327331076,1715989839871,-504.29461321,0.00016438,2]
[327331079,1715989839880,-500.0,0.00016438,2]
[327331082,1715989839890,-500.0,0.00016438,2]
[327331086,1715989839900,-500.0,0.00016438,2]
[327331089,1715989839910,-500.0,0.00016438,2]
[327331091,1715989839919,-500.0,0.00016438,2]
[327331094,1715989839929,-509.11158163,0.00016438,2]
[327331098,1715989839938,-496.91563878,0.00016438,2]
[327331101,1715989839948,-502.51126909,0.00016438,2]
[327331104,1715989839958,-501.06667719,0.00016438,2]
[327331106,1715989839968,-500.0,0.00016438,2]
[327331110,1715989839978,-500.0,0.00016438,2]
[327331112,1715989839988,-504.6275065,0.00016438,2]
[327331115,1715989839998,-2565.95,0.00016438,2]
[327331119,1715989840008,-500.0,0.00016438,2]
[327331123,1715989840018,-500.0,0.00016438,2]
[327331126,1715989840027,-500.0,0.00016438,2]
[327331129,1715989840038,-500.0,0.00016438,2]
[327331131,1715989840049,-500.79962334,0.00016438,2]
[327331135,1715989840058,-500.0,0.00016438,2]
[327331140,1715989840077,-500.0,0.00016438,2]
[327331143,1715989840089,-500.90492189,0.00016438,2]
[327331146,1715989840100,-500.0,0.00016438,2]
[327331149,1715989840110,-500.0,0.00016438,2]
[327331152,1715989840120,-447.75220669,0.00016438,2]
[327331155,1715989840130,-500.0,0.00016438,2]
[327331158,1715989840140,-500.0,0.00016438,2]
[327331161,1715989840151,-268.35997529,0.00016438,2]
[327331165,1715989840160,-500.0,0.00016438,2]
[327331168,1715989840170,-680.07,0.00016438,2]
[327331171,1715989840180,-584.27,0.00016438,2]
[327331173,1715989840190,-500.0,0.00016438,2]
[327331175,1715989840200,-500.0,0.00016438,2]
[327331178,1715989840212,-500.47313397,0.00016438,2]
[327331180,1715989840225,-500.0,0.00016438,2]
[327331182,1715989840236,-5503.03,0.00016438,2]
[327331184,1715989840246,-500.0,0.00016438,2]
[327331186,1715989840256,-500.0,0.00016438,2]
[327331188,1715989840267,-500.0,0.00016438,2]